fUST/lending_fUST_20240518
["ID","MTS","AMOUNT","RATE_DAILY","PERIOD"]
[327377336,1716029357192,-200.50632456,9.372e-05,2]
[327377337,1716029357214,-8740.29937931,9.374e-05,2]
[327377338,1716029357234,-209.96226664,9.766e-05,2]
[327377339,1716029357254,-2147.79969177,9.766e-05,2]
[327377340,1716029357274,-156.47600208,9.766e-05,2]
[327377341,1716029357295,-528.74951499,9.766e-05,2]
[327377342,1716029357315,-281.91116502,9.766e-05,2]
[327377343,1716029357336,-567.73317195,9.766e-05,2]
[327377344,1716029357356,-155.05333778,9.766e-05,2]
[327377345,1716029357376,-158.46242936,9.766e-05,2]
[327377346,1716029357397,-718.35053032,9.767e-05,2]
[327377347,1716029357417,-282.75171541,9.767e-05,2]
[327377348,1716029357437,-1007.7246252,9.768e-05,2]
[327377349,1716029357458,-696.60092052,9.768e-05,2]
[327377350,1716029357478,-542.01932062,9.768e-05,2]
[327377351,1716029357500,-24900.0,9.769e-05,2]
[327377352,1716029357520,-13572.55968602,9.796e-05,2]
[327377353,1716029357541,-771.85111591,0.0001,2]
[327377354,1716029357562,-9398.82663272,0.0001,2]
[327377355,1716029357583,-1017.82776253,0.0001,2]
[327377356,1716029357603,-359.39826424,0.00010859,2]
[327377357,1716029357623,-278.15,0.00010959,2]
[327377358,1716029357645,-231.79,0.00010959,2]
[327377359,1716029357665,-193.16,0.00010959,2]
[327377360,1716029357686,-160.97,0.00010959,2]
[327377361,1716029357708,-804.86,0.00010959,2]
[327377362,1716029357729,-592.39,0.00010959,2]
[327377363,1716029357750,-493.65,0.00010959,2]
[327377364,1716029357772,-411.38,0.00010959,2]
[327377365,1716029357795,-342.82,0.00010959,2]
[327377366,1716029357815,-285.68,0.00010959,2]
[327377367,1716029357836,-238.07,0.00010959,2]
[327377368,1716029357856,-198.39,0.00010959,2]
[327377369,1716029357876,-154.70605849,0.00011623,2]
[327377370,1716029357897,-154.70605849,0.00011623,2]
[327377371,1716029357919,-311.40765475,0.00012326,2]
[327377372,1716029358201,492.79282332,9.767e-05,2]
[327377373,1716029359379,320.75937495,9.767e-05,2]
[327377374,1716029361149,182.35413719,9.999e-05,2]
[327377375,1716029362214,154.93779932,9.999e-05,2]
[327377376,1716029364105,-1833.18002788,0.000129,2]
[327377377,1716029365631,204.27807549,9.766e-05,2]
[327377378,1716029365740,367.82,0.00010959,2]
[327377379,1716029367028,266.17832433,9.371e-05,2]
[327377386,1716029373333,3630.39037261,9.371e-05,2]
[327377387,1716029374102,-312.09310108,0.000129,2]
[327377388,1716029376263,306.51,0.00010959,2]
[327377389,1716029386803,195.36828778,0.00010959,2]
[327377390,1716029386829,60.06171222,0.00010959,2]
[327377391,1716029393338,3339.72783384,9.371e-05,2]
[327377392,1716029398212,212.86,0.00010959,2]
[327377399,1716029406810,273.37336231,9.9e-05,2]
[327377400,1716029408775,212.86,0.00010959,2]
[327377401,1716029415218,273.37336231,9.9e-05,2]
[327377402,1716029419286,851.44,0.00010959,2]
[327377403,1716029424854,273.37336231,9.9e-05,2]
[327377424,1716029432645,-170.63579234,0.00013498,2]
[327377425,1716029432654,-687.110417,0.00013699,2]
[327377426,1716029432664,-2239.0816375,0.00013699,2]
[327377427,1716029432673,-154.7215013,0.000137,2]
[327377428,1716029432682,-283.58690319,0.00014898,2]
[327377429,1716029432691,-409.67835242,0.000149,2]
[327377430,1716029432701,-334.80261301,0.00014998,2]
[327377431,1716029432710,-521.79090165,0.00014999,2]
[327377432,1716029432720,-2712.86187073,0.00014999,2]
[327377433,1716029432729,-285.71224732,0.00015,2]
[327377434,1716029432739,-3699.56949019,0.00015,2]
[327377435,1716029432748,-2107.5414282,0.00015,2]
[327377436,1716029432757,-1149.07076386,0.00015,2]
[327377437,1716029432766,-942.53705457,0.00015,2]
[327377438,1716029432775,-80000.0,0.00015,2]
[327377439,1716029432784,-491.35425183,0.00015,2]
[327377440,1716029432794,-155.13643218,0.00015,2]
[327377441,1716029432803,-2400.65057528,0.00015,2]
[327377442,1716029432812,-409.67835241,0.0001526,2]
[327377443,1716029432821,-409.67835241,0.00015619,2]
[327377444,1716029432831,-408.6720691,0.00015978,2]
[327377445,1716029432839,-409.67835241,0.00015979,2]
[327377446,1716029432848,-12260.48327562,0.00015998,2]
[327377447,1716029432857,-2603.27153163,0.00016,2]
[327377448,1716029432869,-324.87774632,0.00016,2]
[327377449,1716029433909,273.37336231,9.9e-05,2]
[327377469,1716029438556,-920.93404353,0.00014,2]
[327377471,1716029438565,-576.56595647,0.00014997,2]
[327377474,1716029438577,-766.89660977,0.00014997,2]
[327377486,1716029438691,-257.13268637,0.00014997,2]
[327377502,1716029438836,-5197.57154698,0.00014997,2]
[327377528,1716029439093,-2600.65983313,0.00014997,2]
[327377530,1716029439102,-5039.49516558,0.00016,2]
[327377532,1716029439112,-12703.0,0.00016,2]
[327377534,1716029439121,-1596.963401,0.00016232,2]
[327377536,1716029439131,-1419.97511581,0.00016272,2]
[327377538,1716029439140,-409.67835241,0.00016338,2]
[327377540,1716029439150,-2000.0,0.00016338,2]
[327377542,1716029439159,-38990.65805231,0.00016338,2]
[327377544,1716029439169,-1593.66828313,0.00016432,2]
[327377546,1716029439179,-177.69105564,0.00016434,2]
[327377548,1716029439188,-2278.42231276,0.00016434,2]
[327377550,1716029439198,-3945.65089908,0.00016434,2]
[327377552,1716029439207,-7761.35857762,0.00016434,2]
[327377554,1716029439217,-154.75239617,0.00016434,2]
[327377556,1716029439226,-457.71131544,0.00016434,2]
[327377558,1716029439235,-195.05407017,0.00016434,2]
[327377560,1716029439244,-1634.82759572,0.00016434,2]
[327377561,1716029439253,-207.34451471,0.00016434,2]
[327377563,1716029439262,-285.63058925,0.00016434,2]
[327377565,1716029439271,-834.79115319,0.00016434,2]
[327377567,1716029439282,-156.2364718,0.00016435,2]
[327377569,1716029439292,-155.00461033,0.00016435,2]
[327377571,1716029439301,-22019.29038385,0.00016436,3]
[327377573,1716029439310,-184.59951435,0.00016436,2]
[327377575,1716029439319,-2012.3112495,0.00016436,2]
[327377577,1716029439328,-3210.76956172,0.00016436,2]
[327377579,1716029439338,-520.9064556,0.00016436,2]
[327377581,1716029439347,-7201.43493612,0.00016436,2]
[327377583,1716029439357,-287.55982929,0.00016436,2]
[327377585,1716029439366,-501.32209016,0.00016438,2]
[327377587,1716029439376,-500.0,0.00016438,2]
[327377589,1716029439385,-500.0,0.00016438,2]
[327377591,1716029439395,-500.0,0.00016438,2]
[327377593,1716029439404,-500.0,0.00016438,2]
[327377595,1716029439414,-500.0,0.00016438,2]
[327377597,1716029439424,-500.0,0.00016438,2]
[327377599,1716029439433,-500.0,0.00016438,2]
[327377601,1716029439443,-500.0,0.00016438,2]
[327377603,1716029439452,-500.0,0.00016438,2]
[327377605,1716029439462,-500.0,0.00016438,2]
[327377607,1716029439471,-500.0,0.00016438,2]
[327377609,1716029439481,-500.0,0.00016438,2]
[327377611,1716029439490,-500.0,0.00016438,2]
[327377613,1716029439500,-500.0,0.00016438,2]
[327377615,1716029439509,-246.36773708,0.00016438,2]
[327377617,1716029439519,-500.0,0.00016438,2]
[327377619,1716029439528,-500.0,0.00016438,2]
[327377621,1716029439537,-500.0,0.00016438,2]
[327377623,1716029439548,-500.0,0.00016438,2]
[327377625,1716029439558,-500.0,0.00016438,2]
[327377627,1716029439566,-505.10279794,0.00016438,2]
[327377628,1716029439576,-500.0,0.00016438,2]
[327377630,1716029439586,-500.0,0.00016438,2]
[327377632,1716029439595,-500.0,0.00016438,2]
[327377634,1716029439605,-500.0,0.00016438,2]
[327377636,1716029439615,-500.0,0.00016438,2]
[327377638,1716029439625,-500.0,0.00016438,2]
[327377640,1716029439634,-221.28872477,0.00016438,2]
[327377642,1716029439644,-526.20334919,0.00016438,2]
[327377644,1716029439654,-1341.83,0.00016438,2]
[327377646,1716029439664,-500.0,0.00016438,2]
[327377648,1716029439672,-500.0,0.00016438,2]
[327377650,1716029439682,-500.0,0.00016438,2]
[327377652,1716029439692,-500.0,0.00016438,2]
[327377654,1716029439706,-500.0,0.00016438,2]
[327377656,1716029439715,-500.0,0.00016438,2]
[327377658,1716029439724,-500.0,0.00016438,2]
[327377660,1716029439734,-500.0,0.00016438,2]
[327377662,1716029439744,-500.0,0.00016438,2]
[327377664,1716029439753,-500.0,0.00016438,2]
[327377666,1716029439763,-500.0,0.00016438,2]
[327377668,1716029439772,-500.0,0.00016438,2]
[327377670,1716029439781,-500.0,0.00016438,2]
[327377672,1716029439792,-500.0,0.00016438,2]
[327377674,1716029439802,-500.0,0.00016438,2]
[327377676,1716029439812,-500.0,0.00016438,2]
[327377678,1716029439821,-500.0,0.00016438,2]
[327377680,1716029439831,-500.0,0.00016438,2]
[327377682,1716029439840,-500.0,0.00016438,2]
[327377684,1716029439850,-502.9587946,0.00016438,2]
[327377686,1716029439860,-500.0,0.00016438,2]
[327377688,1716029439869,-500.0,0.00016438,2]
[327377690,1716029439879,-500.0,0.00016438,2]
[327377692,1716029439889,-500.0,0.00016438,2]
[327377694,1716029439898,-500.0,0.00016438,2]
[327377696,1716029439908,-500.0,0.00016438,2]
[327377698,1716029439918,-500.0,0.00016438,2]
[327377700,1716029439927,-395.89822196,0.00016438,2]
[327377702,1716029439936,-502.91493688,0.00016438,2]
[327377704,1716029439945,-500.0,0.00016438,2]
[327377705,1716029439955,-271.91801612,0.00016438,2]
[327377881,1716029442010,273.37336231,9.9e-05,2]
[327378343,1716029446497,-588.25192056,0.00016437,2]
[327378345,1716029446506,-230.06305126,0.00016438,2]
[327378347,1716029446515,-500.0,0.00016438,2]
[327378349,1716029446525,-500.0,0.00016438,2]
[327378351,1716029446534,-500.0,0.00016438,2]
[327378353,1716029446543,-500.0,0.00016438,2]
[327378355,1716029446554,-500.0,0.00016438,2]
[327378357,1716029446563,-500.0,0.00016438,2]
[327378359,1716029446573,-500.0,0.00016438,2]
[327378361,1716029446582,-501.43276924,0.00016438,2]
[327378363,1716029446592,-500.0,0.00016438,2]
[327378365,1716029446601,-500.0,0.00016438,2]
[327378367,1716029446610,-500.0,0.00016438,2]
[327378369,1716029446619,-500.0,0.00016438,2]
[327378371,1716029446628,-500.0,0.00016438,2]
[327378373,1716029446637,-500.0,0.00016438,2]
[327378375,1716029446647,-500.0,0.00016438,2]
[327378377,1716029446656,-500.0,0.00016438,2]
[327378379,1716029446665,-500.0,0.00016438,2]
[327378381,1716029446674,-440.35962986,0.00016438,2]
[327378383,1716029446683,-500.0,0.00016438,2]
[327378385,1716029446693,-500.0,0.00016438,2]
[327378386,1716029446703,-505.82,0.00016438,2]
[327378388,1716029446712,-500.0,0.00016438,2]
[327378390,1716029446723,-500.0,0.00016438,2]
[327378393,1716029446733,-500.0,0.00016438,2]
[327378394,1716029446742,-500.0,0.00016438,2]
[327378396,1716029446751,-500.0,0.00016438,2]
[327378398,1716029446761,-500.0,0.00016438,2]
[327378400,1716029446770,-500.0,0.00016438,2]
[327378402,1716029446779,-296.47262908,0.00016438,2]
[327378697,1716029542810,404.56,0.00010959,2]
[327378699,1716029553302,337.14,0.00010959,2]
[327378717,1716030429175,-1029.10170319,9.998e-05,2]
[327378724,1716030567097,-370.98329006,9.893e-05,2]
[327378725,1716030567118,-999.07995331,9.894e-05,2]
[327378726,1716030569154,-582.34134837,9.894e-05,2]
[327378727,1716030569175,-1338.26302922,9.894e-05,2]
[327378728,1716030569200,-521.28631068,9.895e-05,2]
[327378729,1716030569220,-31135.40865705,9.896e-05,2]
[327378730,1716030569241,-370.98329006,9.897e-05,2]
[327378732,1716030569262,-154.73694719,9.998e-05,2]
[327378733,1716030569282,-9398.82663272,0.0001,2]
[327378734,1716030569303,-171.98631352,0.00010858,2]
[327378735,1716030569322,-156.05952228,0.00010859,2]
[327378736,1716030569342,-412.67758215,0.00011085,2]
[327378737,1716030569363,-24900.0,0.00011086,2]
[327378738,1716030569387,-171.98631351,0.00012926,2]
[327378739,1716030570737,280.95,0.00010959,2]
[327378740,1716030581204,151.90589432,0.00010959,2]
[327378741,1716030581225,82.21410568,0.00010959,2]
[327378742,1716030591935,195.1,0.00010959,2]
[327378744,1716030602454,162.59,0.00010959,2]
[327378745,1716030613192,812.95,0.00010959,2]
[327378891,1716030638680,-350.03265236,0.00013376,2]
[327378893,1716030638690,-155.17992662,0.00013376,2]
[327378894,1716030638699,-495.28406339,0.00013376,2]
[327378978,1716030639729,-206.91022373,0.00013376,2]
[327378979,1716030639739,-126.16893251,0.00013376,2]
[327379034,1716030640115,-28.6298291,0.00013376,2]
[327379036,1716030640125,-154.89239156,0.00013377,2]
[327379038,1716030640136,-597.4521166,0.00013497,2]
[327379040,1716030640145,-1439.7176633,0.00013699,2]
[327379042,1716030640155,-343.555208,0.00013699,2]
[327379044,1716030640165,-920.93404353,0.00014942,2]
[327379046,1716030640174,-1419.97511581,0.00014943,2]
[327379048,1716030640183,-171.98631351,0.00014994,2]
[327379050,1716030640192,-287.37091348,0.00014994,2]
[327379052,1716030640203,-2771.63267761,0.00014994,2]
[327379054,1716030640216,-285.71224732,0.00015,2]
[327379056,1716030640226,-3699.56949019,0.00015088,2]
[327379058,1716030640236,-2107.5414282,0.00015089,2]
[327379060,1716030640246,-1149.07076386,0.0001509,2]
[327379062,1716030640256,-239.20909577,0.00015091,2]
[327379064,1716030640271,-564.34747872,0.00015092,2]
[327379066,1716030640281,-155.18075614,0.00015092,2]
[327379068,1716030640290,-288.77816151,0.00015093,2]
[327379070,1716030640299,-6680.16392903,0.00015093,2]
[327379072,1716030640312,-2668.35095598,0.00015093,2]
[327379074,1716030640322,-942.53705457,0.00015093,2]
[327379076,1716030640331,-155.67454446,0.00015094,2]
[327379078,1716030640342,-2012.3112495,0.00015094,2]
[327379080,1716030640353,-520.9064556,0.00015094,2]
[327379082,1716030640365,-184.59951435,0.00015094,2]
[327379085,1716030640376,-287.55982929,0.00015094,2]
[327379087,1716030640388,-7201.43493612,0.00015094,2]
[327379089,1716030640399,-3210.76956172,0.00015094,2]
[327379091,1716030640415,-177.69105564,0.00015094,2]
[327379093,1716030640426,-3945.65089908,0.00015094,2]
[327379095,1716030640436,-195.05407017,0.00015094,2]
[327379097,1716030640446,-207.34451471,0.00015094,2]
[327379099,1716030640459,-156.2364718,0.00015094,2]
[327379101,1716030640470,-7761.35857762,0.00015094,2]
[327379103,1716030640481,-1634.82759572,0.00015094,2]
[327379105,1716030640492,-154.75239617,0.00015094,2]
[327379107,1716030640502,-834.79115319,0.00015094,2]
[327379109,1716030640512,-803.39175304,0.00015094,2]
[327379111,1716030640522,-155.00461033,0.00015094,2]
[327379113,1716030640532,-2278.42231276,0.00015094,2]
[327379115,1716030640543,-285.63058925,0.00015094,2]
[327379117,1716030640553,-457.71131544,0.00015094,2]
[327379119,1716030640563,-302.95134984,0.00015095,2]
[327379121,1716030640573,-287.37091345,0.00015368,2]
[327379123,1716030640583,-287.37091345,0.00015742,2]
[327379125,1716030640593,-155.68999789,0.00015999,2]
[327379127,1716030640602,-237.00521211,0.00015999,2]
[327379129,1716030640614,-7967.64444353,0.00016,2]
[327379131,1716030640624,-12703.0,0.00016,2]
[327379133,1716030640635,-5735.92432261,0.00016,2]
[327379135,1716030640644,-1079.9125056,0.00016,2]
[327379137,1716030640655,-287.37091345,0.00016115,2]
[327379139,1716030640665,-4222.10020806,0.00016181,2]
[327379141,1716030640675,-150.31301354,0.00016213,2]
[327379143,1716030640685,-1596.963401,0.00016238,2]
[327379145,1716030640695,-417.06273246,0.00016314,2]
[327379147,1716030640705,-38990.65805231,0.00016338,2]
[327379149,1716030640714,-2000.0,0.00016338,2]
[327379151,1716030640724,-30218.28468191,0.00016435,3]
[327379153,1716030640735,-1079.71842075,0.00016435,2]
[327379155,1716030640745,-4499.23803278,0.00016435,2]
[327379192,1716030641082,-24802.74360856,0.00016435,2]
[327379705,1716030743125,273.37336231,9.9e-05,2]
[327379708,1716031539288,-172.92000474,9.678e-05,2]
[327379710,1716031634097,-154.7215013,9.577e-05,2]
[327379711,1716031634118,-154.7215013,9.578e-05,2]
[327379712,1716031634138,-154.7215013,9.579e-05,2]
[327379713,1716031634158,-167.18517971,9.58e-05,2]
[327379714,1716031634189,-142.25782289,9.58e-05,2]
[327379715,1716031634210,-818.31964662,9.791e-05,2]
[327379716,1716031634231,-255.72593644,9.792e-05,2]
[327379719,1716031748449,-1907.4919919,9.278e-05,2]
[327379720,1716031748470,-547.81016174,9.694e-05,2]
[327379721,1716031748491,-547.81016174,9.792e-05,2]
[327379722,1716031748511,-8773.01123121,9.893e-05,2]
[327379723,1716031748531,-1266.73041097,9.897e-05,2]
[327379724,1716031748553,-154.7215013,9.999e-05,2]
[327379725,1716031748574,-3665.19685637,0.0001,2]
[327379726,1716031748594,-495.28406339,0.00010589,2]
[327379727,1716031748613,-167.04397122,0.00010589,2]
[327379728,1716031748633,-640.53614809,0.00010589,2]
[327379729,1716031748652,-155.20247613,0.00010589,2]
[327379730,1716031748802,-221.55038004,0.00010589,2]
[327379731,1716031748823,-155.17992662,0.0001059,2]
[327379732,1716031748843,-350.03265236,0.0001059,2]
[327379733,1716031748863,-24900.0,0.00010591,2]
[327379734,1716031754743,273.37336231,9.9e-05,2]
[327379735,1716031761095,-1419.49151538,0.00013694,2]
[327379736,1716031761114,-317.210404,0.00013699,2]
[327379737,1716031761133,-525.74242885,0.00013832,2]
[327379738,1716031761152,-285.63058925,0.00013832,2]
[327379739,1716031761171,-1345.08354338,0.00013832,2]
[327379740,1716031761860,771.85111591,0.00012447,2]
[327379741,1716031762618,273.37336231,9.9e-05,2]
[327379742,1716031766233,-603.99982288,0.00013832,2]
[327379743,1716031767182,1558.70959997,9.999e-05,2]
[327379744,1716031770702,273.37336231,9.9e-05,2]
[327379745,1716031778763,273.37336231,9.9e-05,2]
[327379746,1716031788191,273.37336231,9.9e-05,2]
[327379749,1716031796025,273.37336231,9.9e-05,2]
[327379750,1716031803868,273.37336231,9.9e-05,2]
[327379751,1716031811753,273.37336231,9.9e-05,2]
[327379752,1716031819897,273.37336231,9.9e-05,2]
[327379754,1716031827785,273.37336231,9.9e-05,2]
[327379763,1716031832142,-2597.41542727,0.00013497,2]
[327379765,1716031832151,-775.55873902,0.00013498,2]
[327379767,1716031832160,-164.10523627,0.00013732,2]
[327379769,1716031832169,-155.61277014,0.00013831,2]
[327379770,1716031832179,-329.3389465,0.00013832,2]
[327379771,1716031832188,-457.71131544,0.00013832,2]
[327379772,1716031832197,-803.39175304,0.00013832,2]
[327379773,1716031832206,-154.75239617,0.00013832,2]
[327379774,1716031832215,-834.79115319,0.00013832,2]
[327379775,1716031832225,-1634.82759572,0.00013832,2]
[327379776,1716031832234,-156.2364718,0.00013832,2]
[327379777,1716031832243,-195.05407017,0.00013832,2]
[327379778,1716031832252,-207.34451471,0.00013832,2]
[327379779,1716031832263,-3210.76956172,0.00013832,2]
[327379780,1716031832272,-177.69105564,0.00013832,2]
[327379781,1716031832281,-3945.65089908,0.00013832,2]
[327379782,1716031832290,-184.59951435,0.00013832,2]
[327379783,1716031832299,-287.55982929,0.00013832,2]
[327379784,1716031832309,-520.9064556,0.00013832,2]
[327379785,1716031832318,-237.00521211,0.00013833,2]
[327379786,1716031832327,-155.68999789,0.00013833,2]
[327379787,1716031832336,-302.95134984,0.00013833,2]
[327379788,1716031832345,-7761.35857762,0.00013833,2]
[327379789,1716031832355,-2679.0754119,0.000149,2]
[327379790,1716031832364,-1094.84700582,0.00014998,2]
[327379791,1716031832372,-920.93404353,0.00014999,2]
[327379792,1716031832382,-1149.07076386,0.00015,2]
[327379793,1716031832391,-3699.56949019,0.00015,2]
[327379794,1716031832401,-942.53705457,0.00015,2]
[327379795,1716031832410,-2400.65057528,0.00015,2]
[327379796,1716031832420,-2107.5414282,0.00015,2]
[327379797,1716031832429,-1682.87470421,0.00015,2]
[327379798,1716031832438,-80000.0,0.00015,2]
[327379799,1716031832447,-229.89673076,0.000159,2]
[327379800,1716031832455,-150.31301354,0.00015938,2]
[327379801,1716031832464,-417.06273246,0.00015996,2]
[327379802,1716031832474,-5735.92432261,0.00016,2]
[327379803,1716031832483,-3197.42923748,0.00016,2]
[327379804,1716031835900,273.37336231,9.9e-05,2]
[327379872,1716031838920,-9505.57076252,0.00016,2]
[327379873,1716031838942,-1079.9125056,0.00016,2]
[327379874,1716031838952,-7967.64444353,0.00016,2]
[327379875,1716031838962,-229.89673076,0.0001601,2]
[327379876,1716031838972,-229.89673076,0.00016119,2]
[327379877,1716031838986,-4222.10020806,0.00016129,2]
[327379878,1716031838996,-229.89673076,0.00016229,2]
[327379879,1716031839012,-155.20227214,0.00016329,2]
[327379880,1716031839023,-155.6687836,0.00016331,2]
[327379881,1716031839034,-16023.8523822,0.00016331,2]
[327379882,1716031839044,-12929.58202663,0.00016331,2]
[327379883,1716031839055,-708.95161168,0.00016331,2]
[327379884,1716031839066,-690.11886562,0.00016331,2]
[327379885,1716031839077,-1489.67676826,0.00016331,2]
[327379886,1716031839088,-1534.161727,0.00016335,2]
[327379887,1716031839098,-30218.28468191,0.00016338,3]
[327379888,1716031839109,-42241.85899131,0.00016338,3]
[327379889,1716031839119,-229.89673076,0.00016338,2]
[327379890,1716031839290,-38990.65805231,0.00016338,2]
[327379891,1716031839301,-2000.0,0.00016338,2]
[327379892,1716031839311,-277.75241642,0.00016433,2]
[327379893,1716031839321,-154.7215013,0.00016436,2]
[327379894,1716031839331,-234.81997423,0.00016436,2]
[327379895,1716031839341,-536.15113167,0.00016436,2]
[327379896,1716031839350,-2515.77457761,0.00016437,2]
[327379897,1716031839360,-260.56552242,0.00016437,2]
[327379898,1716031839370,-500.0,0.00016438,2]
[327379899,1716031839380,-500.0,0.00016438,2]
[327379900,1716031839389,-154.81422293,0.00016438,2]
[327379901,1716031839400,-500.0,0.00016438,2]
[327379902,1716031839409,-500.0,0.00016438,2]
[327379903,1716031839419,-500.0,0.00016438,2]
[327379904,1716031839428,-500.0,0.00016438,2]
[327379905,1716031839437,-500.0,0.00016438,2]
[327379906,1716031839448,-500.0,0.00016438,2]
[327379907,1716031839458,-500.0,0.00016438,2]
[327379908,1716031839468,-500.0,0.00016438,2]
[327379909,1716031839478,-376.1029477,0.00016438,2]
[327379910,1716031839488,-500.0,0.00016438,2]
[327379911,1716031839497,-500.0,0.00016438,2]
[327379912,1716031839507,-500.0,0.00016438,2]
[327379913,1716031839516,-500.0,0.00016438,2]
[327379914,1716031839526,-500.0,0.00016438,2]
[327379915,1716031839536,-500.0,0.00016438,2]
[327379916,1716031839545,-221.2409615,0.00016438,2]
[327379917,1716031839555,-283.18,0.00016438,2]
[327379918,1716031839564,-500.0,0.00016438,2]
[327379919,1716031839574,-502.69958719,0.00016438,2]
[327379920,1716031839584,-500.0,0.00016438,2]
[327379921,1716031839594,-500.0,0.00016438,2]
[327379922,1716031839604,-500.0,0.00016438,2]
[327379923,1716031839615,-500.0,0.00016438,2]
[327379924,1716031839625,-500.0,0.00016438,2]
[327379925,1716031839635,-500.0,0.00016438,2]
[327379926,1716031839646,-500.0,0.00016438,2]
[327379928,1716031839655,-500.0,0.00016438,2]
[327379929,1716031839665,-500.0,0.00016438,2]
[327379930,1716031839675,-520.75694388,0.00016438,2]
[327379931,1716031839685,-500.0,0.00016438,2]
[327379932,1716031839695,-500.0,0.00016438,2]
[327379933,1716031839704,-500.0,0.00016438,2]
[327379934,1716031839715,-500.0,0.00016438,2]
[327379935,1716031839724,-500.0,0.00016438,2]
[327379936,1716031839737,-500.0,0.00016438,2]
[327379937,1716031839747,-151.0,0.00016438,2]
[327379938,1716031839757,-500.0,0.00016438,2]
[327379939,1716031839767,-227.38964441,0.00016438,2]
[327379940,1716031839777,-598.28908808,0.00016438,2]
[327379941,1716031839787,-506.35894727,0.00016438,2]
[327379942,1716031839797,-500.0,0.00016438,2]
[327379943,1716031839807,-553.92242521,0.00016438,2]
[327379944,1716031839816,-500.0,0.00016438,2]
[327379945,1716031839826,-235.4975923,0.00016438,2]
[327379946,1716031839836,-500.0,0.00016438,2]
[327379947,1716031839846,-500.0,0.00016438,2]
[327379948,1716031839856,-139.1495101,0.00016438,2]
[327380035,1716031840800,-11.8504899,0.00016438,2]
[327380037,1716031840810,-500.0,0.00016438,2]
[327380039,1716031840821,-501.32209016,0.00016438,2]
[327380041,1716031840831,-500.0,0.00016438,2]
[327380043,1716031840841,-500.0,0.00016438,2]
[327380045,1716031840851,-500.0,0.00016438,2]
[327380047,1716031840861,-500.0,0.00016438,2]
[327380050,1716031840882,-500.0,0.00016438,2]
[327380052,1716031840894,-164.46273812,0.00016438,2]
[327380396,1716031844317,273.37336231,9.9e-05,2]
[327380816,1716031852694,273.37336231,9.9e-05,2]
[327380817,1716031854578,710.86,0.00010959,2]
[327380818,1716031858377,1136.28761432,0.00012327,2]
[327380819,1716031860681,273.37336231,9.9e-05,2]
[327380820,1716031868977,273.37336231,9.9e-05,2]
[327380821,1716031877400,273.37336231,9.9e-05,2]
[327380822,1716031885486,273.37336231,9.9e-05,2]
[327380823,1716031893926,273.37336231,9.9e-05,2]
[327380824,1716031902545,273.37336231,9.9e-05,2]
[327380825,1716031909806,1705.0,0.00023,30]
[327380826,1716031910360,273.37336231,9.9e-05,2]
[327380827,1716031918502,273.37336231,9.9e-05,2]
[327380828,1716031926974,273.37336231,9.9e-05,2]
[327380829,1716031935651,273.37336231,9.9e-05,2]
[327380830,1716031943665,273.37336231,9.9e-05,2]
[327380851,1716032836248,-154.7215013,9.491e-05,2]
[327380852,1716032836268,-154.7215013,9.492e-05,2]
[327380853,1716032836288,-261.10136921,9.493e-05,2]
[327380854,1716032836308,-154.7215013,9.493e-05,2]
[327380855,1716032836332,-792.85478578,9.493e-05,2]
[327380856,1716032854112,-154.7215013,9.49e-05,2]
[327380857,1716032854134,-275.51508399,9.49e-05,2]
[327380859,1716032947106,-154.7215013,9.391e-05,2]
[327380860,1716032947130,-513.4844886,9.392e-05,2]
[327380861,1716032947154,-690.19911136,9.393e-05,2]
[327380862,1716032947323,-154.7215013,9.393e-05,2]
[327380863,1716032947347,-9559.52730965,9.393e-05,2]
[327380864,1716032947367,-675.83241571,9.394e-05,2]
[327380865,1716032947388,-1716.94679494,9.394e-05,2]
[327380866,1716032947408,-400.31733172,9.395e-05,2]
[327380867,1716032947431,-250.70868332,9.49e-05,2]
[327380868,1716032947449,-236.5182214,9.49e-05,2]
[327380869,1716032947469,-234.3036698,9.49e-05,2]